Workbook

Sheet A200 and other GEM's
A1: 1 | B1: Select Your CDK
A2: 2 | B2: Select Your Mount
B3: SCOPE AND MOUNT PARAMETERS (FROM DIAGRAM) | D3: Calc'd x-y components
D4: x | E4: y
B5: Aperture | C5: =INDEX(Aperture,A1) -> 12.5 | D5: =C5*COS(C16*PI()/180) -> 12.31009691 | E5: =C5*SIN(C16*PI()/180) -> 2.170602221
B6: Dimension "A" | C6: =INDEX(A,A2) -> 5.3 | D6: =0 -> 0 | E6: =C6 -> 5.3
B7: Dimension "B" | C7: =INDEX(B,A2) -> 10.6 | D7: =C7*COS(C15*PI()/180) -> 8.683011669 | E7: =C7*SIN(C15*PI()/180) -> 6.079910225
B8: Dimension "C" | C8: =INDEX(C_,A2) -> 6.75 | D8: =C8*COS((90-C15)*PI()/180) -> 3.871640945 | E8: =C8*SIN((90-C15)*PI()/180) -> 5.529276299
B9: Dimension "D" | C9: =INDEX(D,A1) -> 8.62 | D9: =C9*COS((90-C15)*PI()/180) -> 4.944228881 | E9: =C9*SIN((90-C15)*PI()/180) -> 7.061090622
B10: Dimension "E" | C10: =INDEX(E,A1) -> 28 | D10: =C10*COS(C15*PI()/180) -> 22.93625724 | E10: =C10*SIN(C15*PI()/180) -> 16.06014022
B11: Dimension "F" | C11: =INDEX(F,A1) -> 7.5 | D11: =C11*COS(C15*PI()/180) -> 6.143640332 | E11: =C11*SIN(C15*PI()/180) -> 4.301823273
B12: Dimension "G" | C12: =INDEX(G,A1) -> 18 | D12: =-C12*COS(C15*PI()/180) -> -14.7447368 | E12: =-C12*SIN(C15*PI()/180) -> -10.32437585
B13: Dimension "I" | C13: =INDEX(I,A2) -> 0 | E13: =$C$13*COS($C$15*PI()/180) -> 0
B14: INPUT SITE INFORMATION
B15: Latitude | C15: 35 | D15: Degrees
B16: Dome Diameter(2*R) | C16: 10 | D16: Feet
B17: Dome Wall Height(H) | C17: 48 | D17: Inches
B18: Petestal Height | C18: 6 | D18: Inches
B20: OUTPUTS
B21: Pier to floor distance | C21: 36.62008977 | D21: Inches
B22: Press Button to Calculate Pier Height | C22: =C21-C18 -> 30.62008977 | D22: Inches
B23: Dist BC intersection is above wall | C23: =C74-C17 -> 0 | D23: Inches (+ is above, ideal is 0)
B25: Max Tube Height | C25: =E6+E7+E8+E9+E10+E11+C21 -> 80.95233041 | D25: inches
B26: Max Dome Height (at center) | C26: =C17+C16*12/2 -> 108 | D26: inches
B27: Clearance (at max scope) | C27: =C17+C70-C25 -> 24.7495948 | D27: inches
B28: Southern Horizon Limit | C28: =C78 -> 5.946863054 | D28: degrees
B29: East/West Horizon Limit | C29: =C85 -> 0.6882073386 | D29: degrees
B30: Minimum Height Clearance (for roll-off observatories) | C30: =C21+C6+E7+C11 -> 55.5 | D30: inches | E30: =C30/12 -> 4.625
B32: If Pier is Offset(center B, C intersection)
B33: Pier Offset | C33: =D7+1.5 -> 10.18301167 | D33: inches
B34: Rnorth | C34: =((C8+C9+C11)^2+(C10)^2)^0.5 -> 36.1529653 | D34: inches
B35: Rsouth | C35: =((C8+C9+C11)^2+(C10)^2)^0.5 -> 36.1529653 | D35: inches
B36: Clearance Rnorth | C36: =C16*12/2-C34 -> 23.8470347 | D36: inches
B37: Clearance Rsouth | C37: =C16*12/2-C35 -> 23.8470347 | D37: inches
B39: If Pier is centered
B40: Pier Offset | C40: 0
B41: Rnorth | C41: =((C8+C9+C11)^2+(C10+C33)^2)^0.5 -> 44.5081934 | D41: inches | E41: =C41/12 -> 3.709016117
B42: Rsouth | C42: =((C8+C9+C11)^2+(C10-C33)^2)^0.5 -> 28.99106713 | D42: inches
B43: Clearance Rnorth | C43: =C16*12/2-C41 -> 15.4918066 | D43: inches
B44: Clearance Rsouth | C44: =C16*12/2-C42 -> 31.00893287 | D44: inches
B45: Clearance Reast | C45: =C8+C9+C11 -> 22.87 | D45: inches | E45: =C45/12 -> 1.905833333
B47: Eyepiece Heights | C47: (inches) | D47: (feet)
B48: Looking at the pole | C48: =C21+C62+C63+C64+C67 -> 50.26599107 | D48: =C48/12 -> 4.188832589
B49: East/West horizon | C49: =C21+C62+C63+C64 -> 60.59036692 | D49: =C49/12 -> 5.049197243
B50: North/South horizon | C50: =C21+C62+C63 -> 48 | D50: =C50/12 -> 4
B51: Pointing at Zenith | C51: =C21+C62+C63+C67 -> 37.67562415 | D51: =C51/12 -> 3.139635345
B53: Tube Max Heights | C53: (inches) | D53: (feet)
B54: Looking at the pole | C54: =C21+C62+C63+C64+C65+C66 -> 80.95233041 | D54: =C54/12 -> 6.746027534
B55: North/South Horizon | C55: =C21+C62+C63+C11 -> 55.5 | D55: =C55/12 -> 4.625
B57: Counter Weight Bar (For A200 only) | C57: (Inches)
B58: Distance that Counterweight bar hangs below mount base | C58: =$C$13*COS($C$15*PI()/180)-$D$7-$C$6 -> -13.98301167
B61: Intersections based on latitude | C61: Inches
B62: Dimension "A" | C62: =C6 -> 5.3
B63: Height of BC intersection above pivot point "A" | C63: =C7*SIN((C15)*PI()/180) -> 6.079910225
B64: Dim "C" (Y) + Dim "D" (Y) | C64: =(C8+C9)*SIN((90-C15)*PI()/180) -> 12.59036692
B65: Dim "E" (Y) | C65: =C10*SIN(C15*PI()/180) -> 16.06014022
B66: Dim "F" (Y) | C66: =C11*SIN((C15)*PI()/180) -> 4.301823273
B67: Dim "G" (Y) | C67: =-C12*SIN(C15*PI()/180) -> -10.32437585
B68: Misc Calcs
B69: Dist in x from BC intersection to high point of F | C69: =D7-D8-D9+D10-D11 -> 16.65975875
B70: Height of dome at above calced offset from center | C70: =C16*12/2*COS(C69/(C16/2*12)) -> 57.70192521
B71: AR: Aperture Radius | C71: =C5/2 -> 6.25
B73: Southern Horizon Calc
B74: C=Ay+By+P | C74: =E6+E7+C21 -> 48
B75: AR-(C-H) | C75: =C71-(C74-C17) -> 6.25
B76: R in inches | C76: =C16/2*12 -> 60
B77: ATAN (AR-(C-H)/R) in radians | C77: =ATAN(C75/C76) -> 0.1037923405
B78: ATAN (AR-(C-H)/R) in degrees | C78: =C77*180/PI() -> 5.946863054 | D78: degrees
B80: East/West Horizont Calc
B81: C=Ay+By+Cy+P | C81: =E6+E7+E8+C21 -> 53.5292763
B82: AR-(C-H) | C82: =C71-(C81-C17) -> 0.720723701
B83: R in inches | C83: =C16/2*12 -> 60
B84: ATAN (AR-(C-H)/R) in radians | C84: =ATAN(C82/C83) -> 0.012011484
B85: ATAN (AR-(C-H)/R) in degrees | C85: =C84*180/PI() -> 0.6882073386 | D85: degrees

Sheet L-Series AltAz
A1: 4 | B1: Select Your CDK | F1: ='L-Series AltAz'!D6=INDEX(F,A1) -> FALSE
A2: 1 | B2: Select Your Mount
B4: SCOPE AND MOUNT PARAMETERS (FROM DIAGRAM) | C4: Dim | E4: Units
B5: Height of L mount | C5: H | D5: 62.25 | E5: in
B6: Radius of OTA | C6: F | D6: 22 | E6: in
B7: Length of OTA from CG to Front Ring | C7: E | D7: 67 | E7: in
B8: INPUT SITE INFORMATION | D8: Inputs
B9: Wall Height | C9: W | D9: 96 | E9: in
B10: Dome Diameter | C10: D | D10: 115 | E10: in
B11: Petestal Height (above observatory floor) | C11: K | D11: 0 | E11: in
B13: OUTPUTS
B14: Press Button to Calculate Pier Height | C14: P | D14: 0 | E14: in
B15: Alt Axis = Wall Height (Ideal is zero) | D15: =D5+D14+D11-D9 -> -33.75 | E15: in
B16: Max Height of telescope | C16: M | D16: =D14+D5+D11+(D7^2+D6^2)^0.5 -> 132.7695008 | E16: in
B17: Max Dome Height (at center) | D17: =D9+D10/2 -> 153.5 | E17: in
B18: Clearance to top of Dome | D18: =D17-D16 -> 20.73049915 | E18: in
B19: Max Height when pointed horizontal | D19: =D14+D6+D5+D11 -> 84.25 | E19: in
K42: Inputs
D43: 39.8 | E43: in | K43: A
D44: 12.5 | E44: in | K44: B
D45: 38 | E45: in | K45: C
D46: 6 | E46: in | K46: P
D47: =45 -> 45 | E47: in | K47: W
D48: =10*12 -> 120 | E48: in | K48: D
L52: Outputs
K53: Max Height of telescope | L53: H | M53: =D46+D43+(D45^2+D44^2)^0.5 -> 85.80312488 | N53: in
K54: Max Height when pointed horizontal | M54: =D46+D44+D43 -> 58.3 | N54: in
K55: Clearance | M55: =L60-M53 -> 19.19687512 | N55: in
K56: Alt Axis - Wall Height (nice to be close to zero, + means alt axis is above the wall) | M56: =D43+D46-D47 -> 0.8
K59: Calculations
K60: Dome Max Height | L60: =D47+D48/2 -> 105 | M60: in

Sheet L-Series EQ
A1: 2 | B1: Select Your CDK
A2: 1 | B2: Select Your Mount
B4: SCOPE AND MOUNT PARAMETERS (FROM DIAGRAM) | C4: Dim | E4: Calc'd x-y components
E5: x | F5: y
B6: Height of Equatorial Wedge | C6: A | D6: =INDEX(AA,A2) -> 11.1 | E6: =0 -> 0 | F6: =D6 -> 11.1
B7: Height of L mount | C7: H | D7: =INDEX(H,A2) -> 33.5 | E7: =D7*COS(D13*PI()/180) -> 28.40961122 | F7: =D7*SIN(D13*PI()/180) -> 17.75229535
B8: Length of OTA from CG to Front Ring | C8: E | D8: =INDEX(E,A1) -> 28
B9: Radius of OTA | C9: F | D9: =INDEX(F,A1) -> 9.075
B10: CG to focal plane | C10: G | D10: =INDEX(G,A1) -> 18.8
B11: Aperture | D11: =INDEX(Aperture,A1) -> 14
B12: SITE INPUT
B13: Latitude | D13: 32 | E13: Deg
B14: Dome Diameter(2*R) | D14: 108 | E14: in
B15: Dome Wall Height(W) | D15: 72 | E15: in
B16: Petestal Height (above observatory floor) | D16: 0 | E16: in
B17: OUTPUTS
B18: Press Button to Calculate Pier Height | C18: P | D18: 43.14770465 | E18: in
B19: Distance that the DEC Axis (C-E Intersection) is above wall height (Ideal is zero) | D19: =(D18+D16+D6+F7)-D15 -> 0
B20: Max Tube Height | D20: =D18+D16+D6+F7+(D8^2+D9^2)^0.5 -> 101.4339196 | E20: in
B21: Max Dome Height (at center) | D21: =D15+D14/2 -> 126 | E21: in
B22: Clearance of scope and dome at max height | D22: =D21-D20 -> 24.56608037 | E22: in
B23: Southern Horizon Limit | D23: =D40 -> 7.386043151 | E23: Deg
B24: East/West Horizon Limit | D24: =D47 -> 6.654425046 | E24: Deg
B25: Pier Offset | D25: =E7 -> 28.40961122 | E25: in
B26: Eyepiece Height at Zenith | D26: =D18+D16+F6+F7-D10 -> 53.2 | E26: in
B27: Eyepiece Height at 45 degrees | D27: =D18+D16+F6+F7-D10*SIN(PI()/4) -> 58.70639251 | E27: in
B30: Misc Calcs
B31: Dist in x from BC intersection to high point of F
B32: Height of dome at above calced offset from center
B33: AR: Aperture Radius | D33: =D11/2 -> 7 | E33: in
B35: Southern Horizon Calc
B36: C=Ay+Hy+P | D36: =D6+F7+D18 -> 72 | E36: in
B37: AR-(C-W) | D37: =D33-(D36-D15) -> 7 | E37: in
B38: Dome Radius | D38: =D14/2 -> 54 | E38: in
B39: ATAN (AR-(C-H)/R) in radians | D39: =ATAN(D37/D38) -> 0.1289107717 | E39: Rads
B40: ATAN (AR-(C-H)/R) in degrees | D40: =D39*180/PI() -> 7.386043151 | E40: Deg
B42: East/West Horizont Calc
B43: C=Ay+Hy+P | D43: =D6+F7+D18 -> 72 | E43: in
B44: AR-(C-H) | D44: =D33-(D43-D15) -> 7 | E44: in
B45: Dome Radius | D45: 60 | E45: in
B46: ATAN (AR-(C-H)/R) in radians | D46: =ATAN(D44/D45) -> 0.1161416269 | E46: Rads
B47: ATAN (AR-(C-H)/R) in degrees | D47: =D46*180/PI() -> 6.654425046 | E47: Deg
D49: 0.295
C50: =ATAN(D49) -> 0.2868633495
C51: =DEGREES(C50) -> 16.43605922

Sheet CDK700
A2: SCOPE AND MOUNT INPUTS
A4: A - Base to Alt Axis | B4: 47.5
A5: B - Alt Axis to Front of Tube (diagonal) | B5: 50
A6: C - Pier Height (optional) | B6: 0
A7: Aperture | B7: 28
A13: SITE INPUT
A15: Dome Diameter(2*R) | B15: 10 | C15: Feet
A16: Dome Wall Height(H) | B16: 47.5 | C16: Inches
A17: Pier Height (P) | B17: 0 | C17: Inches
A20: OUTPUTS
A21: Distance that the ALT Axis is above wall height | B21: =B4+B6-B16 -> 0 | C21: Inches (+ is above, ideal is 0, adjust P)
A22: Max Tube Height | B22: =B4+B5+B6 -> 97.5 | C22: inches
A23: Max Dome Height (at center) | B23: =B16+B15*12/2 -> 107.5 | C23: inches
A24: Clearance of scope and dome at max height | B24: =B16+B15/2*12-B22 -> 10 | C24: inches
A25: Max Horizontal Foot print | B25: =B5 -> 50

Sheet Other Forks
A2: SCOPE AND MOUNT INPUTS | C2: Calc'd x-y components
C3: x | D3: y
A4: A (MI1000=15.5, MI750=15.5, MI500=11.875) | B4: 15.5 | C4: =0 -> 0 | D4: =B4 -> 15.5
A5: B (MI1000 with 1250 arms=43.3, MI1000=40.8, MI750=31, MI500 with 750 arms=28.9) | B5: 43.3 | C5: =B5*COS(B14*PI()/180) -> 34.58091759 | D5: =B5*SIN(B14*PI()/180) -> 26.0585905
B6: 0 | C6: =B6*COS((90-B14)*PI()/180) -> 0 | D6: =B6*SIN((90-B14)*PI()/180) -> 0
B7: 0 | C7: =B7*COS((90-B14)*PI()/180) -> 0 | D7: =B7*SIN((90-B14)*PI()/180) -> 0
A8: E (CDK24=40, CDK20=36, CDK17=30) | B8: 45
A9: F ( CDK24=17, CDK20=14, 17=12) | B9: 17
A10: G (CDK24=26, CDK20= 13.5, CDK17=15) | B10: 26
A11: Aperture | B11: 24
A13: SITE INPUT
A14: Latitude | B14: 37 | C14: Degrees
A15: Dome Diameter(2*R) | B15: 9 | C15: Feet
A16: Dome Wall Height(H) | B16: 48 | C16: Inches
A17: Pier Height (P) | B17: 18.5 | C17: Inches
A18: Distance that the DEC Axis is above wall height | B18: =B48-B16 -> 12.0585905 | C18: Inches (+ is above, ideal is 0, adjust P)
A20: OUTPUTS
A21: Max Tube Height | B21: =B17+D4+D5+(B8^2+B9^2)^0.5 -> 108.1626444 | C21: inches
A22: Max Dome Height (at center) | B22: =B16+B15*12/2 -> 102 | C22: inches
A23: Clearance of scope and dome at max height | B23: =B16+B15/2*12-B21 -> -6.162644386 | C23: inches
A24: Southern Horizon Limit | B24: =B52 -> -0.06216642953 | C24: degrees
A25: East/West Horizon Limit | B25: =B59 -> -0.06216642953 | C25: degrees
A26: Pier Offset | B26: =C5 -> 34.58091759 | C26: inches
A27: Eyepiece Height at Zenith | B27: =B17+D4+D5-B10 -> 34.0585905 | C27: inches
A28: Eyepiece Height at 45 degrees | B28: =B17+D4+D5-B10*SIN(PI()/4) -> 41.67381419 | C28: inches
A42: Misc Calcs
A43: Dist in x from BC intersection to high point of F | B43: na
A44: Height of dome at above calced offset from center | B44: na
A45: AR: Aperture Radius | B45: =B11/2 -> 12
A47: Southern Horizon Calc
A48: C=Ay+By+P | B48: =D4+D5+B17 -> 60.0585905
A49: AR-(C-H) | B49: =B45-(B48-B16) -> -0.05859050248
A50: R in inches | B50: =B15/2*12 -> 54
A51: ATAN (AR-(C-H)/R) in radians | B51: =ATAN(B49/B50) -> -0.001085008879
A52: ATAN (AR-(C-H)/R) in degrees | B52: =B51*180/PI() -> -0.06216642953 | C52: degrees
A54: East/West Horizont Calc
A55: C=Ay+By+Cy+P | B55: =D4+D5+D6+B17 -> 60.0585905
A56: AR-(C-H) | B56: =B45-(B55-B16) -> -0.05859050248
A57: R in inches | B57: =B15/2*12 -> 54
A58: ATAN (AR-(C-H)/R) in radians | B58: =ATAN(B56/B57) -> -0.001085008879
A59: ATAN (AR-(C-H)/R) in degrees | B59: =B58*180/PI() -> -0.06216642953 | C59: degrees

Sheet AltAz
A2: SCOPE AND MOUNT INPUTS | C2: Calc'd x-y components
C3: x | D3: y
A4: A (MI1000=8, MI750=, MI500=) | B4: 8 | C4: =0 -> 0 | D4: =B4 -> 8
A5: B (MI1000 with 1250 arms=43.3, MI1000=40.8, MI750=31, MI500 with 750 arms=28.9) | B5: 43.3 | C5: 0 | D5: =B5 -> 43.3
B6: 0 | C6: =B6*COS((90-B14)*PI()/180) -> 0 | D6: =B6*SIN((90-B14)*PI()/180) -> 0
B7: 0 | C7: =B7*COS((90-B14)*PI()/180) -> 0 | D7: =B7*SIN((90-B14)*PI()/180) -> 0
A8: E (CDK24=45, CDK20=36, CDk17=17) | B8: 43
A9: F (CDK24=17) | B9: 16
A10: G (CDK24=26) | B10: 24
A11: Aperture | B11: 24
A13: SITE INPUT
A14: Latitude | B14: 48.5 | C14: Degrees
A15: Dome Diameter(2*R) | B15: 15 | C15: Feet
A16: Dome Wall Height(H) | B16: 31.5 | C16: Inches
A17: Pier Height (P) | B17: 20 | C17: Inches
A18: Distance that the ALT Axis is above wall height | B18: =B4+B5+B17-B16 -> 39.8 | C18: Inches (+ is above, ideal is 0, adjust P)
A20: OUTPUTS
A21: Max Tube Height | B21: =B17+D4+D5+(B8^2+B9^2)^0.5 -> 117.180279 | C21: inches
A22: Max Dome Height (at center) | B22: =B16+B15*12/2 -> 121.5 | C22: inches
A23: Clearance of scope and dome at max height | B23: =B16+B15/2*12-B21 -> 4.319721012 | C23: inches
A24: Southern Horizon Limit | B24: =B52 -> -29.44231398 | C24: degrees
A25: East/West Horizon Limit | B25: =B59 -> -17.16533751 | C25: degrees
A26: Pier Offset | B26: =C5 -> 0 | C26: inches
A27: Eyepiece Height at Zenith | B27: =B17+D4+D5-B10 -> 47.3 | C27: inches
A28: Eyepiece Height at 45 degrees | B28: =B17+D4+D5-B10*SIN(PI()/4) -> 54.32943725 | C28: inches
A42: Misc Calcs
A43: Dist in x from BC intersection to high point of F | B43: na
A44: Height of dome at above calced offset from center | B44: na
A45: AR: Aperture Radius | B45: =B11/2 -> 12
A47: Southern Horizon Calc
A48: C=Ay+By+P | B48: =B4+B5+B8 -> 94.3
A49: AR-(C-H) | B49: =B45-(B48-B16) -> -50.8
A50: R in inches | B50: =B15/2*12 -> 90
A51: ATAN (AR-(C-H)/R) in radians | B51: =ATAN(B49/B50) -> -0.5138653184
A52: ATAN (AR-(C-H)/R) in degrees | B52: =B51*180/PI() -> -29.44231398 | C52: degrees
A54: East/West Horizont Calc
A55: C=Ay+By+Cy+P | B55: =D4+D5+D6+B17 -> 71.3
A56: AR-(C-H) | B56: =B45-(B55-B16) -> -27.8
A57: R in inches | B57: =B15/2*12 -> 90
A58: ATAN (AR-(C-H)/R) in radians | B58: =ATAN(B56/B57) -> -0.2995916567
A59: ATAN (AR-(C-H)/R) in degrees | B59: =B58*180/PI() -> -17.16533751 | C59: degrees

Sheet Data
C1: Rad of OTA w/dovetail | D1: CG to front of OTA | E1: Rad of OTA | F1: CG to focal plane
A2: A1 | B2: CDK | C2: D | D2: E | E2: F | F2: G | G2: Aperture
B3: CDK 12.5 | C3: 8.62 | D3: 28 | E3: 7.5 | F3: 18 | G3: 12.5
B4: CDK 14 | C4: 9.475 | D4: 28 | E4: 9.075 | F4: 18.8 | G4: 14
B5: CDK 17 | C5: 12.4 | D5: 29.7 | E5: 11.4 | F5: 22.7 | G5: 17
B6: CDK 20 | C6: 15 | D6: 38 | E6: 12.44 | F6: 17 | G6: 20
B7: CDK 24 | C7: 19 | D7: 41 | E7: 16 | F7: 29 | G7: 24
A10: A2 | B10: Mount | C10: A | D10: B | E10: C | F10: I
B11: A200 | C11: 11.45 | D11: 8 | E11: 10.5 | F11: 30.5
B12: AP1100 | C12: 5.3 | D12: 10.6 | E12: 6.75 | F12: 0
B13: AP1600 | C13: 5.804 | D13: 14.9 | E13: 9.3125 | F13: 0
B14: AP3600 | C14: 12.5 | D14: 13.2 | E14: 11.3125 | F14: 0
B15: Paramount ME | C15: 3.25 | D15: 13.4 | E15: 9 | F15: 0
B16: Paraount MEII | C16: 4.8 | D16: 14.5 | E16: 11.5 | F16: 0
B17: Paramount MX | C17: 4.825 | D17: 12.5 | E17: 9.5 | F17: 0
A19: A3 | B19: AltAz_Mounts | C19: H | D19: AA
B20: L350 | C20: 33.5 | D20: 11.1
B21: L500 | C21: 42.71 | D21: 13.2
B22: L600 | C22: 50 | D22: 13.2
B34: A (A200=11.5, AP3600=)
B35: B (A200=8)
B36: C (A200=10.5)
B37: D (CDK24=17, CDK20=13.5,CDK17=12)
B38: E (CDK24=45, CDK20=38, CDK17=30, CDK12=28)
B39: F (CDK24=17, CDK20=12.5, CDK17=11, CDK12=7.5)
B40: G (CDK24=26, CDK20=17, CDK17=15, CDK12=18)

Sheet Notes
B3: Go to Formulas Menu and select Name Manager to
B4: add more items to the data list
C14: L500=42.71, L600=50
C15: 17=11.38 , 20=12.88, 24=17
C16: 17= 33, 20=40, 24=43
